[Event "*** Qualifier 2: Titled Tuesday 3|2 Blitz"]
[Site "Chess.com"]
[Date "2017.04.11"]
[Round "1"]
[White "rasmussvane"]
[Black "dcremisi"]
[Result "1-0"]
[WhiteElo "2533"]
[BlackElo "2268"]
[TimeControl "180+2"]
[EndTime "13:07:05 PDT"]
[Termination "rasmussvane won by resignation"]

1. Nf3 {[%clk 0:03:02]} 1... e6 {[%clk 0:03:00]} 2. c4 {[%clk 0:03:02.7]} 2...
d5 {[%clk 0:02:59.2]} 3. d4 {[%clk 0:03:03.9]} 3... Nf6 {[%clk 0:02:54.7]} 4.
Nc3 {[%clk 0:03:04.9]} 4... c6 {[%clk 0:02:55.6]} 5. e3 {[%clk 0:03:05.2]} 5...
Nbd7 {[%clk 0:02:56]} 6. Qc2 {[%clk 0:03:06.5]} 6... Bd6 {[%clk 0:02:53.4]} 7.
Bd3 {[%clk 0:03:08.1]} 7... O-O {[%clk 0:02:54.3]} 8. O-O {[%clk 0:03:09.1]}
8... dxc4 {[%clk 0:02:55.1]} 9. Bxc4 {[%clk 0:03:11]} 9... Qe7 {[%clk
0:02:54.8]} 10. a3 {[%clk 0:02:58.8]} 10... e5 {[%clk 0:02:53.4]} 11. Ba2 {[%clk
0:02:56.7]} 11... b6 {[%clk 0:02:45.9]} 12. Rd1 {[%clk 0:02:50.5]} 12... Bb7
{[%clk 0:02:43.3]} 13. dxe5 {[%clk 0:02:51.8]} 13... Nxe5 {[%clk 0:02:43.4]} 14.
Nd4 {[%clk 0:02:52.6]} 14... g6 {[%clk 0:02:30.1]} 15. e4 {[%clk 0:02:39.7]}
15... Bc5 {[%clk 0:02:12.5]} 16. Nb3 {[%clk 0:02:30.7]} 16... Rfd8 {[%clk
0:02:07.5]} 17. Nxc5 {[%clk 0:02:29.3]} 17... Qxc5 {[%clk 0:02:07.4]} 18. Be3
{[%clk 0:02:28.3]} 18... Qe7 {[%clk 0:02:06.8]} 19. h3 {[%clk 0:02:26.1]} 19...
Ba6 {[%clk 0:02:04.6]} 20. Qa4 {[%clk 0:01:55.4]} 20... Qb7 {[%clk 0:01:52.9]}
21. Bg5 {[%clk 0:01:52.8]} 21... Rxd1+ {[%clk 0:01:51.5]} 22. Rxd1 {[%clk
0:01:52.4]} 22... Nfd7 {[%clk 0:01:51.1]} 23. Qd4 {[%clk 0:01:41.2]} 23... Re8
{[%clk 0:01:36.2]} 24. f4 {[%clk 0:01:34.3]} 24... c5 {[%clk 0:01:36.6]} 25. Qd6
{[%clk 0:01:33.8]} 25... Nd3 {[%clk 0:01:17.1]} 26. Rxd3 {[%clk 0:01:33.5]}
26... Bxd3 {[%clk 0:01:17.8]} 27. Qxd3 {[%clk 0:01:35.4]} 27... Nf8 {[%clk
0:01:18.7]} 28. Nd5 {[%clk 0:01:33.5]} 28... Nd7 {[%clk 0:01:10]} 29. Qc3 {[%clk
0:01:11.3]} 29... Rxe4 {[%clk 0:00:54.6]} 30. Ne7+ {[%clk 0:00:56.7]} 30... Rxe7
{[%clk 0:00:55.5]} 31. Bxe7 {[%clk 0:00:58.2]} 31... Qe4 {[%clk 0:00:56.2]} 32.
Bg5 {[%clk 0:00:55]} 32... Nf8 {[%clk 0:00:49.7]} 33. Bh6 {[%clk 0:00:52.2]}
33... Qd4+ {[%clk 0:00:46.2]} 34. Qxd4 {[%clk 0:00:53.4]} 34... cxd4 {[%clk
0:00:48.1]} 35. Kf2 {[%clk 0:00:55]} 35... Ne6 {[%clk 0:00:49.8]} 36. Bxe6
{[%clk 0:00:54.9]} 36... fxe6 {[%clk 0:00:51.7]} 37. Kf3 {[%clk 0:00:56.5]} 1-0

[Event "*** Qualifier 2: Titled Tuesday 3|2 Blitz"]
[Site "Chess.com"]
[Date "2017.04.11"]
[Round "1"]
[White "keisyzrk"]
[Black "XDPS"]
[Result "0-1"]
[WhiteElo "2282"]
[BlackElo "2591"]
[TimeControl "180+2"]
[EndTime "13:07:28 PDT"]
[Termination "XDPS won by resignation"]

1. d4 {[%clk 0:02:58.8]} 1... d5 {[%clk 0:02:59.5]} 2. Nf3 {[%clk 0:02:44.4]}
2... Nf6 {[%clk 0:02:59.2]} 3. c4 {[%clk 0:02:37]} 3... dxc4 {[%clk 0:02:59.6]}
4. e3 {[%clk 0:02:37.6]} 4... Bg4 {[%clk 0:02:58.8]} 5. Bxc4 {[%clk 0:02:37.6]}
5... e6 {[%clk 0:02:58.9]} 6. O-O {[%clk 0:02:36.2]} 6... a6 {[%clk 0:02:59.8]}
7. h3 {[%clk 0:02:37.4]} 7... Bh5 {[%clk 0:03:00]} 8. Be2 {[%clk 0:02:34.9]}
8... Nc6 {[%clk 0:03:00.8]} 9. Nc3 {[%clk 0:02:33.5]} 9... Bd6 {[%clk 0:03:01]}
10. e4 {[%clk 0:02:33.6]} 10... Bxf3 {[%clk 0:02:59.9]} 11. Bxf3 {[%clk
0:02:31.8]} 11... Nxd4 {[%clk 0:02:58.9]} 12. e5 {[%clk 0:02:27.3]} 12... Bxe5
{[%clk 0:02:58.9]} 13. Bxb7 {[%clk 0:02:24.8]} 13... Ra7 {[%clk 0:02:55.6]} 14.
f4 {[%clk 0:02:02.3]} 14... Bd6 {[%clk 0:02:40.5]} 15. Qa4+ {[%clk 0:01:53]}
15... Qd7 {[%clk 0:02:29.1]} 16. Qxd4 {[%clk 0:01:35.4]} 16... Rxb7 {[%clk
0:02:28]} 17. Kh1 {[%clk 0:01:32.4]} 17... O-O {[%clk 0:02:26]} 18. Ne4 {[%clk
0:01:23.8]} 18... Nxe4 {[%clk 0:02:18.5]} 19. Qxe4 {[%clk 0:01:25.7]} 19... Rb4
{[%clk 0:02:19.4]} 20. Qf3 {[%clk 0:01:19.9]} 20... Rfb8 {[%clk 0:02:17.1]} 21.
b3 {[%clk 0:01:20.4]} 21... a5 {[%clk 0:02:11.1]} 22. Bd2 {[%clk 0:01:21.5]}
22... R4b5 {[%clk 0:02:12.1]} 23. Rfd1 {[%clk 0:01:07.2]} 23... Rd5 {[%clk
0:02:08]} 24. Be1 {[%clk 0:01:00.3]} 24... Bb4 {[%clk 0:01:53.3]} 25. Bf2 {[%clk
0:00:52.6]} 25... c6 {[%clk 0:01:51.2]} 26. Rac1 {[%clk 0:00:48.8]} 26... h6
{[%clk 0:01:51.4]} 27. Kh2 {[%clk 0:00:48.3]} 27... Bd6 {[%clk 0:01:48.4]} 28.
Bg3 {[%clk 0:00:43.6]} 28... Rb4 {[%clk 0:01:46.4]} 29. Rxd5 {[%clk 0:00:35.9]}
29... cxd5 {[%clk 0:01:46.2]} 30. Qc3 {[%clk 0:00:33.2]} 30... a4 {[%clk
0:01:33.4]} 31. Qc8+ {[%clk 0:00:27.9]} 31... Qxc8 {[%clk 0:01:34.5]} 32. Rxc8+
{[%clk 0:00:29.7]} 32... Kh7 {[%clk 0:01:36.1]} 33. bxa4 {[%clk 0:00:27.4]}
33... Rxa4 {[%clk 0:01:37]} 34. Rd8 {[%clk 0:00:28.7]} 34... Bxf4 {[%clk
0:01:37.3]} 35. Bxf4 {[%clk 0:00:29.3]} 35... Rxf4 {[%clk 0:01:39.2]} 36. Ra8
{[%clk 0:00:29.6]} 36... Rf2 {[%clk 0:01:38.9]} 37. Kg3 {[%clk 0:00:27.3]} 37...
Rb2 {[%clk 0:01:40.5]} 38. a4 {[%clk 0:00:27.5]} 38... g5 {[%clk 0:01:40.7]} 39.
Kf3 {[%clk 0:00:25]} 39... Kg6 {[%clk 0:01:40.4]} 40. a5 {[%clk 0:00:26.5]}
40... Ra2 {[%clk 0:01:41.1]} 41. a6 {[%clk 0:00:27.6]} 41... Kf5 {[%clk
0:01:41.9]} 42. g4+ {[%clk 0:00:25.7]} 42... Ke5 {[%clk 0:01:42.8]} 43. Ke3
{[%clk 0:00:23.8]} 43... Ra3+ {[%clk 0:01:41.9]} 44. Kd2 {[%clk 0:00:25.1]}
44... Rxh3 {[%clk 0:01:41.9]} 45. a7 {[%clk 0:00:26.7]} 45... Ra3 {[%clk
0:01:43.2]} 46. Ke2 {[%clk 0:00:26]} 46... Ke4 {[%clk 0:01:43.3]} 0-1

[Event "*** Qualifier 2: Titled Tuesday 3|2 Blitz"]
[Site "Chess.com"]
[Date "2017.04.11"]
[Round "1"]
[White "likantrophuss"]
[Black "Wolverine_master"]
[Result "1-0"]
[WhiteElo "2404"]
[BlackElo "1992"]
[TimeControl "180+2"]
[EndTime "13:07:28 PDT"]
[Termination "likantrophuss won on time"]

1. Nf3 {[%clk 0:03:00]} 1... Nf6 {[%clk 0:03:00.2]} 2. b3 {[%clk 0:03:01]} 2...
g6 {[%clk 0:02:58.9]} 3. Bb2 {[%clk 0:03:02]} 3... Bg7 {[%clk 0:03:00.4]} 4. g3
{[%clk 0:03:03.2]} 4... d5 {[%clk 0:03:00.3]} 5. Bg2 {[%clk 0:03:04.3]} 5... c5
{[%clk 0:03:01.8]} 6. O-O {[%clk 0:03:04.9]} 6... O-O {[%clk 0:03:01.7]} 7. c4
{[%clk 0:03:05.9]} 7... Nc6 {[%clk 0:03:01.9]} 8. d3 {[%clk 0:03:06.6]} 8... Re8
{[%clk 0:02:58.5]} 9. cxd5 {[%clk 0:03:07.4]} 9... Nxd5 {[%clk 0:02:58.6]} 10.
Bxg7 {[%clk 0:03:07.5]} 10... Kxg7 {[%clk 0:03:00.5]} 11. Na3 {[%clk 0:03:03.7]}
11... e5 {[%clk 0:02:52.8]} 12. Nc4 {[%clk 0:02:59.6]} 12... f6 {[%clk
0:02:53.4]} 13. Rc1 {[%clk 0:02:59.4]} 13... b6 {[%clk 0:02:51.1]} 14. Qd2
{[%clk 0:02:48.3]} 14... Be6 {[%clk 0:02:51]} 15. Rfd1 {[%clk 0:02:48.4]} 15...
Rc8 {[%clk 0:02:48.5]} 16. a3 {[%clk 0:02:48]} 16... Qe7 {[%clk 0:02:46.9]} 17.
Qb2 {[%clk 0:02:47.4]} 17... Nd4 {[%clk 0:02:46.1]} 18. e3 {[%clk 0:02:28.4]}
18... Nxf3+ {[%clk 0:02:09.8]} 19. Bxf3 {[%clk 0:02:29]} 19... Red8 {[%clk
0:02:09.8]} 20. b4 {[%clk 0:02:20.5]} 20... cxb4 {[%clk 0:02:08.7]} 21. Ra1
{[%clk 0:01:46.1]} 21... Nc3 {[%clk 0:01:53.5]} 22. Rd2 {[%clk 0:01:31.9]} 22...
e4 {[%clk 0:01:45]} 23. axb4 {[%clk 0:01:15.6]} 23... exf3 {[%clk 0:00:59.6]}
24. Qxc3 {[%clk 0:01:16.2]} 24... Bxc4 {[%clk 0:00:58.5]} 25. dxc4 {[%clk
0:01:15.7]} 25... Rxd2 {[%clk 0:00:59.3]} 26. Qxd2 {[%clk 0:01:16.7]} 26... Qe6
{[%clk 0:01:00.9]} 27. Rxa7+ {[%clk 0:01:12.9]} 27... Kg8 {[%clk 0:00:53]} 28.
Qd1 {[%clk 0:00:58.6]} 28... Qxc4 {[%clk 0:00:02.1]} 29. Qxf3 {[%clk 0:00:57.6]}
1-0

[Event "*** Qualifier 2: Titled Tuesday 3|2 Blitz"]
[Site "Chess.com"]
[Date "2017.04.11"]
[Round "1"]
[White "Abrito99"]
[Black "Zlatan56"]
[Result "1-0"]
[WhiteElo "2338"]
[BlackElo "2594"]
[TimeControl "180+2"]
[EndTime "13:07:40 PDT"]
[Termination "Abrito99 won by resignation"]

1. e4 {[%clk 0:02:56.8]} 1... g6 {[%clk 0:03:00.7]} 2. d4 {[%clk 0:02:56.9]}
2... Bg7 {[%clk 0:03:02.1]} 3. Nc3 {[%clk 0:02:57.9]} 3... d6 {[%clk 0:03:01.7]}
4. Nf3 {[%clk 0:02:59.1]} 4... a6 {[%clk 0:03:01.2]} 5. a4 {[%clk 0:02:59.6]}
5... Nf6 {[%clk 0:03:00.8]} 6. Be3 {[%clk 0:02:58.5]} 6... O-O {[%clk
0:03:01.3]} 7. Be2 {[%clk 0:02:57.4]} 7... b6 {[%clk 0:02:59.2]} 8. O-O {[%clk
0:02:55.6]} 8... Bb7 {[%clk 0:02:59]} 9. Nd2 {[%clk 0:02:57.1]} 9... Nbd7 {[%clk
0:02:56.6]} 10. f4 {[%clk 0:02:50.7]} 10... e5 {[%clk 0:02:56]} 11. fxe5 {[%clk
0:02:46.8]} 11... dxe5 {[%clk 0:02:57.9]} 12. d5 {[%clk 0:02:48.4]} 12... c6
{[%clk 0:02:53.6]} 13. Nc4 {[%clk 0:02:26.2]} 13... Qc7 {[%clk 0:02:50.1]} 14.
a5 {[%clk 0:02:17.8]} 14... b5 {[%clk 0:02:42.3]} 15. Nb6 {[%clk 0:01:57.5]}
15... Rad8 {[%clk 0:02:41.2]} 16. Qc1 {[%clk 0:01:46.7]} 16... cxd5 {[%clk
0:02:32.2]} 17. Ncxd5 {[%clk 0:01:41.4]} 17... Nxd5 {[%clk 0:02:20.3]} 18. exd5
{[%clk 0:01:40.4]} 18... f5 {[%clk 0:02:08.9]} 19. c4 {[%clk 0:01:23.9]} 19...
f4 {[%clk 0:02:01.2]} 20. Bf2 {[%clk 0:01:24.6]} 20... e4 {[%clk 0:02:02.1]} 21.
cxb5 {[%clk 0:01:16.5]} 21... Qxc1 {[%clk 0:01:52.9]} 22. Raxc1 {[%clk
0:01:18.4]} 22... e3 {[%clk 0:01:53.8]} 23. Bh4 {[%clk 0:01:18.7]} 23... Nxb6
{[%clk 0:01:44.5]} 24. Bxd8 {[%clk 0:01:13.7]} 24... Nxd5 {[%clk 0:01:37.1]} 25.
bxa6 {[%clk 0:01:14.6]} 25... Ba8 {[%clk 0:01:28.2]} 26. Rc8 {[%clk 0:01:12.5]}
26... Bxb2 {[%clk 0:00:50.5]} 27. Bc4 {[%clk 0:01:04.8]} 27... Bd4 {[%clk
0:00:41]} 28. Kh1 {[%clk 0:01:00.6]} 28... Kg7 {[%clk 0:00:35.7]} 29. Rxa8
{[%clk 0:01:00]} 29... Nc3 {[%clk 0:00:34.1]} 30. Bb6 {[%clk 0:00:51.4]} 30...
Rxa8 {[%clk 0:00:17.6]} 31. Bxd4+ {[%clk 0:00:52.4]} 31... Kh6 {[%clk
0:00:18.1]} 32. Bxc3 {[%clk 0:00:53.6]} 32... Rc8 {[%clk 0:00:17.8]} 33. a7
{[%clk 0:00:54.1]} 1-0

[Event "*** Qualifier 2: Titled Tuesday 3|2 Blitz"]
[Site "Chess.com"]
[Date "2017.04.11"]
[Round "1"]
[White "Gabix_94"]
[Black "PowerThinking2650"]
[Result "1-0"]
[WhiteElo "2513"]
[BlackElo "2221"]
[TimeControl "180+2"]
[EndTime "13:07:40 PDT"]
[Termination "Gabix_94 won by resignation"]

1. e4 {[%clk 0:03:02]} 1... e5 {[%clk 0:03:00.4]} 2. Nf3 {[%clk 0:03:02.4]} 2...
Nc6 {[%clk 0:03:01.5]} 3. Nc3 {[%clk 0:03:02.8]} 3... Nf6 {[%clk 0:03:01.8]} 4.
Be2 {[%clk 0:03:04.3]} 4... Be7 {[%clk 0:03:00.7]} 5. d4 {[%clk 0:03:04.8]} 5...
exd4 {[%clk 0:02:52.9]} 6. Nxd4 {[%clk 0:03:06.7]} 6... d6 {[%clk 0:02:33.1]} 7.
O-O {[%clk 0:03:05.6]} 7... O-O {[%clk 0:02:34]} 8. Re1 {[%clk 0:03:06.4]} 8...
Re8 {[%clk 0:02:23]} 9. h3 {[%clk 0:03:06.3]} 9... h6 {[%clk 0:02:23.7]} 10. Bf1
{[%clk 0:03:07.6]} 10... Bf8 {[%clk 0:02:24.2]} 11. Bf4 {[%clk 0:03:08.7]} 11...
Ne5 {[%clk 0:02:20.8]} 12. Bh2 {[%clk 0:03:07.9]} 12... a6 {[%clk 0:01:48.9]}
13. a4 {[%clk 0:03:07.6]} 13... g5 {[%clk 0:01:34.1]} 14. Kh1 {[%clk 0:03:02.3]}
14... Ng6 {[%clk 0:01:27.6]} 15. Qd2 {[%clk 0:03:00.4]} 15... Bg7 {[%clk
0:01:20.6]} 16. Rad1 {[%clk 0:02:59.2]} 16... Bd7 {[%clk 0:01:10.1]} 17. a5
{[%clk 0:02:58.7]} 17... Nh5 {[%clk 0:01:03.1]} 18. Nd5 {[%clk 0:02:52.5]} 18...
Bc6 {[%clk 0:00:56.3]} 19. Nf5 {[%clk 0:02:45.4]} 19... Bxd5 {[%clk 0:00:33.3]}
20. Qxd5 {[%clk 0:02:44.7]} 20... Nhf4 {[%clk 0:00:27.3]} 21. Qb3 {[%clk
0:02:42.9]} 21... Bf8 {[%clk 0:00:24.5]} 22. Bxf4 {[%clk 0:02:38.7]} 22... Nxf4
{[%clk 0:00:23.5]} 23. g3 {[%clk 0:02:37.6]} 23... Ng6 {[%clk 0:00:23.2]} 24.
Bg2 {[%clk 0:02:30.6]} 24... Qf6 {[%clk 0:00:22.3]} 25. c3 {[%clk 0:02:28.4]}
25... Rab8 {[%clk 0:00:22.3]} 26. Re2 {[%clk 0:02:25.9]} 26... Ne7 {[%clk
0:00:21.6]} 27. Ne3 {[%clk 0:02:26.9]} 27... Bg7 {[%clk 0:00:21.1]} 28. Rde1
{[%clk 0:02:27.1]} 28... Qg6 {[%clk 0:00:20.3]} 29. Kh2 {[%clk 0:02:27.1]} 29...
Qe6 {[%clk 0:00:20.1]} 30. Qa4 {[%clk 0:02:27.5]} 30... Qg6 {[%clk 0:00:18.8]}
31. Nf5 {[%clk 0:02:25.9]} 31... Qf6 {[%clk 0:00:18.7]} 32. Ne3 {[%clk
0:02:25.1]} 32... Ng6 {[%clk 0:00:17.5]} 33. Nd5 {[%clk 0:02:25]} 33... Qd8
{[%clk 0:00:18.1]} 34. Qc2 {[%clk 0:02:14.8]} 34... h5 {[%clk 0:00:18.9]} 35.
Kg1 {[%clk 0:02:10.5]} 35... h4 {[%clk 0:00:19.8]} 36. Re3 {[%clk 0:02:10.5]}
36... Be5 {[%clk 0:00:18.6]} 37. Qe2 {[%clk 0:02:10.1]} 37... hxg3 {[%clk
0:00:19.3]} 38. fxg3 {[%clk 0:02:11.5]} 38... Kg7 {[%clk 0:00:20.4]} 39. Rf3
{[%clk 0:02:11]} 39... f6 {[%clk 0:00:20.9]} 40. Ne3 {[%clk 0:02:11.9]} 40... c6
{[%clk 0:00:21.7]} 41. Nf5+ {[%clk 0:02:12.9]} 41... Kf7 {[%clk 0:00:23]} 42.
Qc4+ {[%clk 0:02:12.8]} 42... d5 {[%clk 0:00:21.8]} 43. Qb3 {[%clk 0:02:13.6]}
43... Qxa5 {[%clk 0:00:21.4]} 44. Rd1 {[%clk 0:02:09.6]} 44... Qb5 {[%clk
0:00:19.4]} 45. Qa2 {[%clk 0:02:07.7]} 45... Qe2 {[%clk 0:00:19.5]} 46. Rfd3
{[%clk 0:02:04.6]} 46... Ne7 {[%clk 0:00:13.8]} 47. Bf3 {[%clk 0:01:57.3]} 47...
Nxf5 {[%clk 0:00:11.6]} 48. Bxe2 {[%clk 0:01:57.8]} 1-0

[Event "*** Qualifier 2: Titled Tuesday 3|2 Blitz"]
[Site "Chess.com"]
[Date "2017.04.11"]
[Round "1"]
[White "Alexander_Moskalenko"]
[Black "PelinGorki"]
[Result "0-1"]
[WhiteElo "2649"]
[BlackElo "2377"]
[TimeControl "180+2"]
[EndTime "13:07:42 PDT"]
[Termination "PelinGorki won by resignation"]

1. d4 {[%clk 0:03:01.3]} 1... Nf6 {[%clk 0:02:59]} 2. Bg5 {[%clk 0:02:59.9]}
2... e6 {[%clk 0:02:59.6]} 3. e4 {[%clk 0:03:00.6]} 3... h6 {[%clk 0:03:00.6]}
4. Bxf6 {[%clk 0:03:02]} 4... Qxf6 {[%clk 0:03:02.3]} 5. c3 {[%clk 0:03:03.9]}
5... d5 {[%clk 0:03:01.7]} 6. Bd3 {[%clk 0:03:02.6]} 6... dxe4 {[%clk
0:02:54.1]} 7. Bxe4 {[%clk 0:03:03.5]} 7... c5 {[%clk 0:02:55.5]} 8. Nf3 {[%clk
0:03:04.5]} 8... Qd8 {[%clk 0:02:50.1]} 9. O-O {[%clk 0:03:04.1]} 9... Qb6
{[%clk 0:02:49.9]} 10. Nbd2 {[%clk 0:02:49.5]} 10... Qxb2 {[%clk 0:02:39.5]} 11.
Rb1 {[%clk 0:02:50.1]} 11... Qxc3 {[%clk 0:02:38.2]} 12. Bxb7 {[%clk 0:02:50.9]}
12... Bxb7 {[%clk 0:02:38.3]} 13. Rxb7 {[%clk 0:02:52.8]} 13... Qa5 {[%clk
0:02:08.5]} 14. d5 {[%clk 0:02:53.3]} 14... Qa6 {[%clk 0:01:55.8]} 15. Qb3
{[%clk 0:02:53.9]} 15... Nd7 {[%clk 0:01:45.2]} 16. dxe6 {[%clk 0:02:54.1]}
16... fxe6 {[%clk 0:01:44.6]} 17. Re1 {[%clk 0:02:54.9]} 17... O-O-O {[%clk
0:01:42.6]} 18. Rxe6 {[%clk 0:02:52.4]} 18... Qxb7 {[%clk 0:01:42.2]} 19. Qa4
{[%clk 0:02:42.3]} 19... Nb6 {[%clk 0:01:39.2]} 20. Qf4 {[%clk 0:02:43.1]} 20...
Qc7 {[%clk 0:01:34]} 21. Qe4 {[%clk 0:02:43.6]} 21... Bd6 {[%clk 0:01:26.2]} 22.
h4 {[%clk 0:02:44.7]} 22... Qd7 {[%clk 0:01:21.5]} 23. Rg6 {[%clk 0:02:35.1]}
23... Rhe8 {[%clk 0:01:20.3]} 24. Qc2 {[%clk 0:02:31.1]} 24... Kb8 {[%clk
0:01:19.1]} 25. g3 {[%clk 0:02:30.9]} 25... Re7 {[%clk 0:01:18.3]} 26. Ne4
{[%clk 0:02:31.4]} 26... Qf5 {[%clk 0:01:10.2]} 27. Rxd6 {[%clk 0:02:10.8]}
27... Rxd6 {[%clk 0:01:08.4]} 28. Qxc5 {[%clk 0:02:12.7]} 28... Qxc5 {[%clk
0:01:08.8]} 29. Nxc5 {[%clk 0:02:14.6]} 29... Rd1+ {[%clk 0:01:08.1]} 30. Kg2
{[%clk 0:02:08.5]} 30... Ra1 {[%clk 0:01:09.6]} 31. a4 {[%clk 0:02:07.7]} 31...
Nxa4 {[%clk 0:01:09.4]} 32. Na6+ {[%clk 0:02:08.6]} 32... Kc8 {[%clk 0:01:09.2]}
33. Nb4 {[%clk 0:02:10.5]} 33... Nb6 {[%clk 0:01:09.8]} 34. Nd4 {[%clk
0:02:10.2]} 34... Re4 {[%clk 0:01:09.9]} 35. Nbc6 {[%clk 0:02:09.3]} 35... Rxd4
{[%clk 0:01:10.7]} 36. Nxd4 {[%clk 0:02:10.1]} 36... a5 {[%clk 0:01:12.2]} 37.
Nb3 {[%clk 0:02:11.7]} 37... Ra3 {[%clk 0:01:11]} 38. Nd4 {[%clk 0:02:12]} 38...
a4 {[%clk 0:01:11.9]} 39. Nb5 {[%clk 0:00:54.2]} 39... Rd3 {[%clk 0:01:10]} 40.
Kf1 {[%clk 0:00:53.3]} 40... a3 {[%clk 0:01:09.6]} 41. Nxa3 {[%clk 0:00:55.2]}
41... Rxa3 {[%clk 0:01:10.3]} 0-1

[Event "*** Qualifier 2: Titled Tuesday 3|2 Blitz"]
[Site "Chess.com"]
[Date "2017.04.11"]
[Round "1"]
[White "Kozok"]
[Black "VMikhalevski"]
[Result "0-1"]
[WhiteElo "2276"]
[BlackElo "2553"]
[TimeControl "180+2"]
[EndTime "13:07:43 PDT"]
[Termination "VMikhalevski won by resignation"]

1. e4 {[%clk 0:02:58.5]} 1... e5 {[%clk 0:02:59.4]} 2. Nf3 {[%clk 0:02:59.1]}
2... Nc6 {[%clk 0:03:01]} 3. Bb5 {[%clk 0:03:00.1]} 3... a6 {[%clk 0:03:02.2]}
4. Ba4 {[%clk 0:03:01.4]} 4... Nf6 {[%clk 0:03:03.3]} 5. Bxc6 {[%clk 0:03:01]}
5... dxc6 {[%clk 0:03:03.5]} 6. d3 {[%clk 0:03:02.6]} 6... Bd6 {[%clk
0:03:03.1]} 7. Nbd2 {[%clk 0:03:03.3]} 7... Be6 {[%clk 0:03:03.5]} 8. b3 {[%clk
0:03:03.6]} 8... b5 {[%clk 0:03:01.2]} 9. Bb2 {[%clk 0:03:04.3]} 9... Nd7 {[%clk
0:03:01.6]} 10. Nf1 {[%clk 0:02:55.7]} 10... O-O {[%clk 0:02:56.3]} 11. Ne3
{[%clk 0:02:56.8]} 11... c5 {[%clk 0:02:51.6]} 12. O-O {[%clk 0:02:53.7]} 12...
Rb8 {[%clk 0:02:50.1]} 13. c4 {[%clk 0:02:40.3]} 13... c6 {[%clk 0:02:37.2]} 14.
h3 {[%clk 0:02:27.8]} 14... Re8 {[%clk 0:02:37.4]} 15. Nh2 {[%clk 0:02:13.3]}
15... Nf8 {[%clk 0:02:36]} 16. Nf5 {[%clk 0:02:10.3]} 16... Ng6 {[%clk
0:02:32.8]} 17. Ng4 {[%clk 0:01:46.8]} 17... Bc7 {[%clk 0:02:23.8]} 18. Qc2
{[%clk 0:01:39.4]} 18... Nf4 {[%clk 0:02:19.5]} 19. Rfd1 {[%clk 0:01:32.1]}
19... Qg5 {[%clk 0:02:17.8]} 20. Kh2 {[%clk 0:01:11.3]} 20... Bxf5 {[%clk
0:02:12.6]} 21. exf5 {[%clk 0:01:11.8]} 21... e4 {[%clk 0:02:01.3]} 22. g3
{[%clk 0:00:53.9]} 22... Nxd3 {[%clk 0:02:00.2]} 23. cxb5 {[%clk 0:00:42.9]}
23... cxb5 {[%clk 0:01:53.3]} 24. Rxd3 {[%clk 0:00:38.4]} 24... exd3 {[%clk
0:01:49.5]} 25. Qxd3 {[%clk 0:00:40.3]} 25... Rbd8 {[%clk 0:01:45.9]} 26. Qc3
{[%clk 0:00:41.3]} 26... h5 {[%clk 0:01:32.6]} 27. Qxc5 {[%clk 0:00:38.8]} 27...
Bxg3+ {[%clk 0:01:29.2]} 28. Kxg3 {[%clk 0:00:39.3]} 28... hxg4 {[%clk
0:01:25.4]} 29. hxg4 {[%clk 0:00:40.8]} 29... Rd3+ {[%clk 0:01:20.6]} 30. f3
{[%clk 0:00:42.3]} 30... Qd2 {[%clk 0:01:11.2]} 31. Be5 {[%clk 0:00:33.7]} 31...
Qe2 {[%clk 0:01:09.4]} 32. Bxg7 {[%clk 0:00:16.9]} 32... Rxf3+ {[%clk
0:00:46.4]} 33. Kh4 {[%clk 0:00:15.2]} 33... Kxg7 {[%clk 0:00:46.1]} 0-1

[Event "*** Qualifier 2: Titled Tuesday 3|2 Blitz"]
[Site "Chess.com"]
[Date "2017.04.11"]
[Round "1"]
[White "Fandorine"]
[Black "StarkAst"]
[Result "1-0"]
[WhiteElo "2659"]
[BlackElo "2344"]
[TimeControl "180+2"]
[EndTime "13:07:53 PDT"]
[Termination "Fandorine won by resignation"]

1. e4 {[%clk 0:03:02]} 1... e6 {[%clk 0:03:00.5]} 2. d4 {[%clk 0:03:01.4]} 2...
d5 {[%clk 0:03:01.5]} 3. Bd3 {[%clk 0:03:01.3]} 3... Nf6 {[%clk 0:02:53.6]} 4.
e5 {[%clk 0:03:01.4]} 4... Nfd7 {[%clk 0:02:54.6]} 5. Ne2 {[%clk 0:03:01.9]}
5... c5 {[%clk 0:02:55.5]} 6. c3 {[%clk 0:03:03.5]} 6... Nc6 {[%clk 0:02:54.9]}
7. O-O {[%clk 0:03:03.8]} 7... f6 {[%clk 0:02:55.9]} 8. Nf4 {[%clk 0:03:00.6]}
8... Qe7 {[%clk 0:02:33.2]} 9. Re1 {[%clk 0:01:43.1]} 9... fxe5 {[%clk
0:02:26.4]} 10. dxe5 {[%clk 0:01:45]} 10... g6 {[%clk 0:02:18.2]} 11. Na3 {[%clk
0:01:23.6]} 11... Bg7 {[%clk 0:02:13.3]} 12. Nb5 {[%clk 0:01:17.1]} 12... Ndxe5
{[%clk 0:02:05.2]} 13. Nh3 {[%clk 0:00:42.2]} 13... O-O {[%clk 0:01:58.6]} 14.
Bg5 {[%clk 0:00:42.8]} 14... Qf7 {[%clk 0:01:59]} 15. Nd6 {[%clk 0:00:42.3]}
15... Qc7 {[%clk 0:01:51.8]} 16. Nxc8 {[%clk 0:00:42.8]} 16... Raxc8 {[%clk
0:01:51.5]} 17. Bf1 {[%clk 0:00:44.4]} 17... Rce8 {[%clk 0:01:36.9]} 18. Bd2
{[%clk 0:00:44.7]} 18... Re7 {[%clk 0:01:10.3]} 19. f4 {[%clk 0:00:35.3]} 19...
Nd7 {[%clk 0:01:10.7]} 20. g3 {[%clk 0:00:36.2]} 20... e5 {[%clk 0:01:07.9]} 21.
fxe5 {[%clk 0:00:37.4]} 21... Ndxe5 {[%clk 0:01:08.7]} 22. Bg2 {[%clk 0:00:39]}
22... Qd6 {[%clk 0:01:00.2]} 23. Bg5 {[%clk 0:00:36.1]} 23... Rd7 {[%clk
0:00:59.4]} 24. Nf4 {[%clk 0:00:35.3]} 24... d4 {[%clk 0:00:54.6]} 25. Nd5
{[%clk 0:00:28.8]} 25... Kh8 {[%clk 0:00:44.6]} 26. Bf4 {[%clk 0:00:28.8]} 26...
Qe6 {[%clk 0:00:33.3]} 27. Qb3 {[%clk 0:00:17.7]} 27... c4 {[%clk 0:00:31.3]}
28. Qb5 {[%clk 0:00:18.8]} 28... a6 {[%clk 0:00:30]} 29. Qc5 {[%clk 0:00:20.1]}
29... Nd3 {[%clk 0:00:25]} 30. Qxf8+ {[%clk 0:00:21]} 30... Qg8 {[%clk
0:00:14.2]} 31. Qxg8+ {[%clk 0:00:22.3]} 1-0